bitfinex-derivatives/quotes_ETHF0:USTF0_20260305
["timestamp","ask_amount","ask_price","bid_price","bid_amount"]
[1772736796944,0.59093967,2072.5,2071.7,6.02071335]
[1772736797137,0.59093967,2072.5,2071.8,0.57137066]
[1772736797445,0.59093967,2072.3,2071.7,6.59208401]
[1772736797646,0.59639297,2072.3,2071.8,0.57137066]
[1772736797837,0.59093967,2072.1,2071.6,6.02071335]
[1772736798040,0.59093967,2072.1,2071.6,0.57137066]
[1772736798238,0.59093967,2072.1,2071.7,0.57137066]
[1772736798742,0.83220967,2072.2,2071.7,0.57137066]
[1772736798948,0.24127,2072.2,2071.8,0.57137066]
[1772736799336,0.0054533,2072.3,2071.8,0.57137066]
[1772736799546,0.0054533,2072.3,2071.8,6.59208401]
[1772736799745,0.0054533,2072.3,2071.9,0.57137066]
[1772736799945,0.59639297,2072.3,2071.8,0.57137066]
[1772736800845,0.0054533,2072.3,2071.8,6.59208401]
[1772736801145,0.0054533,2072.3,2071.9,0.57137066]
[1772736801448,0.59639297,2072.3,2071.9,0.57137066]
[1772736801650,0.59639297,2072.3,2071.7,6.02071335]
[1772736801853,0.59639297,2072.3,2071.7,6.59208401]
[1772736802245,0.59639297,2072.3,2071.7,0.57137066]
[1772736805151,0.59093967,2072.2,2071.7,0.57137066]
[1772736806348,0.59093967,2072.0,2071.5,26.75308401]
[1772736806548,0.59093967,2072.0,2071.6,0.57137066]
[1772736807347,0.59093967,2072.0,2071.6,6.59208401]
[1772736807747,0.78518418,2072.1,2071.7,0.5631821]
[1772736807947,0.24128,2072.1,2071.7,0.5631821]
[1772736808550,0.78518418,2072.1,2071.7,0.5631821]
[1772736808751,0.24128,2072.1,2071.7,0.5631821]
[1772736809953,0.54390418,2072.0,2071.7,0.5631821]
[1772736810750,0.79660692,2072.1,2071.7,0.5631821]
[1772736810952,0.56078022,2072.3,2071.7,0.5631821]
[1772736811454,0.56078022,2072.3,2071.8,0.59331825]
[1772736812256,0.0054533,2072.3,2071.8,0.59331825]
[1772736812650,0.56078022,2072.3,2071.8,0.59331825]
[1772736813557,0.55532692,2072.8,2072.2,0.59331825]
[1772736813752,0.24118,2073.0,2072.4,0.59331825]
[1772736814857,0.55532692,2072.9,2072.4,0.59747334]
[1772736815652,0.24476952,2073.0,2072.4,0.59747334]
[1772736817759,0.55532692,2072.7,2072.2,0.59331825]
[1772736817958,0.2412,2072.8,2072.2,0.59331825]
[1772736818462,0.55532692,2072.7,2072.2,0.59331825]
[1772736818656,0.55532692,2072.5,2072.2,0.59331825]
[1772736818957,0.24123,2072.6,2072.2,0.59944746]
[1772736819359,0.55532692,2072.9,2072.2,0.59944746]
[1772736821254,0.24118,2073.1,2072.2,0.59944746]
[1772736821460,0.24118,2073.1,2072.3,0.59331825]
[1772736821661,0.79650692,2073.1,2072.3,0.59331825]
[1772736822161,0.55532692,2073.0,2072.3,0.59331825]
[1772736822463,0.55532692,2072.8,2072.3,0.59331825]
[1772736822762,0.79653692,2072.7,2072.2,0.59944746]
[1772736824258,0.55532692,2072.6,2072.2,0.59944746]
[1772736824963,0.79653692,2072.7,2072.2,0.59944746]
[1772736825159,0.55532692,2072.8,2072.3,0.59331825]
[1772736825460,0.0046568,2073.0,2072.4,0.59331825]
[1772736826358,0.0046568,2073.0,2072.6,0.59331825]
[1772736826558,0.55532692,2073.4,2072.9,0.59331825]
[1772736827360,0.55532692,2073.6,2072.9,0.59331825]
[1772736827560,0.56052131,2073.6,2072.9,0.59331825]
[1772736827760,0.55532692,2073.4,2072.9,0.59331825]
[1772736828461,0.55532692,2073.2,2072.7,0.59331825]
[1772736829361,0.55532692,2073.2,2072.5,30.05955464]
[1772736829564,0.55532692,2073.0,2072.5,26.39371335]
[1772736829762,0.55532692,2073.0,2072.5,20.96631825]
[1772736830660,0.55532692,2073.0,2072.6,0.59331825]
[1772736831567,0.55532692,2073.0,2072.5,20.96631825]
[1772736832269,0.79651692,2072.9,2072.4,0.59331825]
[1772736832565,0.24119,2072.9,2072.4,0.59331825]
[1772736833959,0.79647692,2073.3,2072.6,0.59331825]
[1772736834163,0.55532692,2073.2,2072.6,0.59331825]
[1772736835567,0.79647692,2073.3,2072.6,0.59331825]
[1772736835769,0.55532692,2073.2,2072.6,0.59331825]
[1772736836166,0.55532692,2073.0,2072.6,0.59331825]
[1772736836367,0.55532692,2073.0,2072.5,0.59331825]
[1772736837967,0.24117,2073.1,2072.5,0.59331825]
[1772736838168,0.24117,2073.1,2072.6,0.59331825]
[1772736838362,0.24117,2073.1,2072.9,0.59331825]
[1772736838569,0.55532692,2073.3,2072.9,0.59331825]
[1772736838868,0.55532692,2073.5,2072.9,0.59331825]
[1772736841568,0.24630439,2073.6,2073.1,3.07252304]
[1772736841770,0.80199633,2073.6,2073.2,0.59667739]
[1772736841968,0.55569194,2073.5,2073.0,0.59667739]
[1772736842468,0.55569194,2073.3,2072.8,27.08839074]
[1772736842666,0.24113,2073.4,2072.9,0.59667739]
[1772736842873,0.56088633,2073.6,2073.0,0.59667739]
[1772736845081,0.55569194,2073.4,2073.0,0.59667739]
[1772736845679,0.79681194,2073.5,2073.0,0.59667739]
[1772736845980,0.55569194,2073.4,2073.0,0.59667739]
[1772736847874,0.24112,2073.5,2073.0,0.59667739]
[1772736847875,0.24112,2073.5,2073.1,3.07252304]
[1772736848079,0.00519439,2073.6,2073.2,0.59667739]
[1772736848282,0.55569194,2073.7,2073.2,0.59667739]
[1772736849283,0.79676194,2074.0,2073.5,0.59667739]
[1772736849485,10.3470977,2074.8,2073.9,0.59667739]
[1772736849486,0.79672194,2074.3,2073.9,0.59667739]
[1772736849676,0.55569194,2074.5,2074.1,3.07252304]
[1772736849983,5.92725,2075.1,2074.2,0.59667739]
[1772736849984,0.55569194,2074.6,2074.2,0.59667739]
[1772736850183,0.00518246,2074.6,2074.2,0.60075979]
[1772736850384,0.5608744,2074.6,2074.2,0.60075979]
[1772736850581,0.79669194,2074.5,2074.2,0.0040824]
[1772736850784,0.79672194,2074.3,2073.9,0.59667739]
[1772736850982,0.55569194,2074.2,2073.9,0.59667739]
[1772736851284,0.00518246,2074.6,2073.7,6.02071335]
[1772736851285,0.55569194,2074.0,2073.7,0.59667739]
[1772736851475,0.55569194,2074.0,2073.6,21.14067739]
[1772736851681,0.55569194,2074.0,2073.6,21.14662998]
[1772736851879,5.92895,2074.5,2073.6,0.00595259]
[1772736851880,0.55569194,2073.8,2073.6,0.00595259]
[1772736852080,0.55569194,2073.8,2073.4,0.59667739]
[1772736852681,0.55569194,2073.8,2073.3,21.14467739]
[1772736852885,0.79676194,2073.7,2073.3,21.14467739]
[1772736853084,0.2369876,2073.7,2073.4,0.59667739]
[1772736853382,0.55569194,2074.1,2073.4,0.59667739]
[1772736853580,0.55569194,2074.4,2073.6,0.59667739]
[1772736853782,0.24102,2074.2,2073.9,0.59667739]
[1772736853983,0.55569194,2074.4,2073.9,0.59667739]
[1772736854377,0.00518246,2074.6,2074.2,0.59667739]
[1772736854581,0.79665194,2074.7,2074.2,0.59667739]
[1772736855282,0.55569194,2074.6,2074.2,0.59667739]
[1772736855485,0.55569194,2074.4,2073.9,0.59667739]
[1772736855878,0.24098,2074.5,2073.9,0.59667739]
[1772736856284,0.24098,2074.5,2074.2,0.59667739]
[1772736857284,0.55569194,2074.9,2074.2,0.59667739]
[1772736857485,0.55569194,2074.9,2074.3,0.59667739]
[1772736858084,0.24095,2074.8,2074.3,0.59667739]
[1772736858386,0.55569194,2074.7,2074.3,0.59667739]
[1772736859084,0.55569194,2074.5,2073.9,0.59667739]
[1772736859283,0.55569194,2074.5,2073.7,0.59667739]
[1772736860182,0.55569194,2074.3,2073.7,0.59667739]
[1772736862489,0.79671194,2074.2,2073.7,0.59667739]
[1772736862689,0.55569194,2074.1,2073.7,0.59667739]
[1772736863995,0.59846977,2073.7,2073.3,0.00584548]
[1772736864284,0.24111,2073.4,2073.1,20.605]
[1772736864493,0.24111,2073.4,2072.9,3.07252304]
[1772736864494,0.59821792,2073.3,2072.7,6.02071335]
[1772736864688,0.59821792,2073.3,2072.8,20.607]
[1772736865190,0.83937792,2073.0,2072.8,0.00399315]
[1772736865395,0.59821792,2072.9,2072.8,0.00399315]
[1772736865993,5.93577487,2073.3,2072.8,0.00399315]
[1772736865994,0.55569194,2073.2,2072.8,0.00399315]
[1772736866193,0.55569194,2073.2,2072.8,0.60067054]
[1772736866493,0.24116,2073.0,2072.8,0.00399315]
[1772736867296,0.55569194,2073.2,2072.8,0.60038533]
[1772736868095,0.24116,2073.0,2072.8,0.60038533]
[1772736869192,0.78772667,2073.0,2072.8,0.00399315]
[1772736869593,0.24116,2073.0,2072.8,0.00399315]
[1772736870098,0.24116,2073.0,2072.7,0.59655801]
[1772736870498,0.56713991,2072.9,2072.5,20.61]
[1772736870698,0.56713991,2072.9,2072.5,21.18379436]
[1772736871096,0.80829991,2073.0,2072.6,0.57379436]
[1772736871803,0.56713991,2073.2,2072.7,0.57379436]
[1772736872197,0.56713991,2073.2,2072.6,3.07252304]
[1772736873697,0.56713991,2073.2,2072.6,3.6463174]
[1772736873901,0.56713991,2073.2,2072.7,0.57379436]
[1772736874102,0.00399487,2073.3,2072.7,0.57379436]
[1772736874800,0.57113478,2073.3,2072.7,0.57379436]
[1772736875798,0.57113478,2073.3,2072.5,20.6134773]
[1772736875799,0.56713991,2073.1,2072.5,0.0034773]
[1772736876099,0.56713991,2073.1,2072.5,21.28827166]
[1772736876994,0.56713991,2072.7,2072.5,0.0034773]
[1772736877200,0.56713991,2072.7,2072.2,20.725]
[1772736877401,0.56713991,2072.7,2072.2,21.29879436]
[1772736877994,0.56713991,2072.5,2072.0,3.6463174]
[1772736878199,0.56713991,2072.5,2072.2,0.00389566]
[1772736881801,0.56713991,2072.3,2071.9,21.31179436]
[1772736881998,0.56713991,2072.1,2071.5,21.36679436]
[1772736882201,0.56713991,2072.1,2071.6,0.57379436]
[1772736882901,0.56713991,2072.1,2071.6,0.57900097]
[1772736883404,0.56713991,2071.9,2071.6,0.00520661]
[1772736884103,0.56713991,2072.3,2071.6,0.57900097]
[1772736885506,0.56713991,2072.3,2071.6,0.00520661]
[1772736885703,0.56713991,2072.1,2071.6,0.57900097]
[1772736885910,0.56713991,2071.9,2071.6,0.00520661]
[1772736886308,0.56713991,2072.4,2071.6,0.57900097]
[1772736888202,0.56713991,2072.2,2071.6,0.57900097]
[1772736890205,0.24124,2072.3,2071.6,0.57900097]
[1772736890413,0.56713991,2072.4,2071.6,0.57900097]
[1772736890702,0.56713991,2072.6,2071.6,0.57900097]
[1772736891305,0.56713991,2072.9,2071.9,0.57379436]
[1772736891504,0.56713991,2072.5,2071.9,0.57379436]
[1772736891704,0.56713991,2072.5,2072.0,21.48179436]
[1772736892009,0.56713991,2072.5,2072.1,0.57379436]
[1772736892210,0.80833991,2072.6,2072.1,0.57379436]
[1772736892809,0.56713991,2072.5,2072.1,0.57379436]
[1772736893009,0.80833991,2072.6,2072.1,0.57379436]
[1772736894310,0.56713991,2072.5,2072.1,0.57379436]
[1772736897212,0.56713991,2072.9,2072.1,0.57379436]
[1772736902419,0.56273193,2073.1,2072.5,0.57661384]
[1772736902609,0.56273193,2072.9,2072.3,6.02071335]
[1772736902812,0.56273193,2072.9,2072.3,20.978]
[1772736903013,0.56273193,2072.9,2072.4,0.57661384]
[1772736903920,0.56273193,2073.2,2072.4,0.57661384]
[1772736904120,0.56273193,2073.2,2072.5,0.57661384]
[1772736904418,0.56273193,2073.2,2072.4,6.02071335]
[1772736904619,0.56273193,2073.2,2072.4,6.59727473]
[1772736904813,0.56273193,2073.2,2072.5,0.57656138]
[1772736905018,0.56273193,2073.2,2072.6,0.57656138]
[1772736905624,0.56273193,2073.2,2072.4,6.59727473]
[1772736906021,0.80387193,2073.2,2072.4,6.59727473]
[1772736906221,0.56273193,2073.1,2072.4,0.57656138]
[1772736906421,0.56273193,2072.9,2072.3,26.99871335]
[1772736906622,0.56273193,2072.9,2072.3,20.978]
[1772736908427,0.56273193,2072.9,2072.3,21.55265139]
[1772736911026,0.56273193,2072.9,2072.4,0.57481772]
[1772736913428,0.56273193,2072.9,2072.3,20.978]
[1772736913628,0.56273193,2072.7,2072.1,6.02071335]
[1772736913928,0.56273193,2072.5,2072.1,0.5764244]
[1772736914128,0.2412,2072.6,2072.1,0.5764244]
[1772736914129,0.80393193,2072.6,2072.1,0.5764244]
[1772736914328,0.80393193,2072.6,2072.2,0.5764244]
[1772736914930,0.2412,2072.6,2072.2,0.5764244]
[1772736916023,0.56273193,2072.8,2072.3,0.57651664]
[1772736916820,0.80389193,2073.0,2072.4,0.5730573]
[1772736917026,0.80389193,2073.0,2072.5,0.5730573]
[1772736917228,0.56273193,2072.9,2072.5,0.5730573]
[1772736917727,0.80389193,2073.0,2072.5,0.5730573]
[1772736917924,0.56273193,2072.9,2072.5,0.5730573]
[1772736918522,0.56273193,2072.9,2072.4,27.62591912]
[1772736918922,0.56273193,2072.7,2072.1,7.40972966]
[1772736919130,0.56273193,2072.7,2072.0,7.98493543]
[1772736919429,0.56273193,2072.5,2072.1,0.57520577]
[1772736920035,0.56273193,2073.0,2072.1,0.57520577]
[1772736920735,0.56273193,2073.0,2072.2,0.58043322]
[1772736920935,0.00399487,2073.3,2072.3,0.58043322]
[1772736920936,0.56273193,2073.2,2072.3,0.58043322]
[1772736921136,0.56273193,2073.2,2072.5,0.58043322]
[1772736921634,0.56273193,2073.9,2072.9,0.58043322]
[1772736921930,0.56273193,2073.9,2073.1,0.58043322]
[1772736922132,0.56273193,2073.9,2073.2,41.38043322]
[1772736922732,0.56273193,2073.9,2073.2,0.58043322]
[1772736922933,0.56755993,2073.9,2073.2,0.58473369]
[1772736923136,0.004828,2073.9,2073.2,0.58473369]
[1772736923335,0.004828,2073.9,2073.4,0.57648722]
[1772736924240,0.80377193,2074.1,2073.4,0.57648722]
[1772736924637,0.56273193,2074.0,2073.5,21.63043322]
[1772736924943,0.56273193,2074.0,2073.6,0.58043322]
[1772736925242,0.56838998,2074.0,2073.6,0.58043322]
[1772736925433,0.56838998,2074.0,2073.3,40.8]
[1772736925636,0.56838998,2074.0,2073.2,0.58473369]
[1772736926947,0.56273193,2073.8,2073.2,0.00430047]
[1772736927441,0.56273193,2073.8,2073.2,0.58473369]
[1772736930245,0.57893234,2074.0,2073.2,0.58473369]
[1772736930942,0.57327429,2073.9,2073.2,0.58473369]
[1772736931143,0.57327429,2073.9,2073.2,0.00430047]
[1772736931444,0.57327429,2073.9,2073.2,0.5634252]
[1772736931646,0.57327429,2073.7,2073.2,0.00430047]
[1772736932048,0.57327429,2073.7,2073.2,0.5634252]
[1772736936347,0.57327429,2073.7,2073.2,0.00430047]
[1772736937754,0.24106,2073.8,2073.2,0.5634252]
[1772736938449,0.81433429,2073.8,2073.2,0.5634252]
[1772736938951,0.00565805,2074.0,2073.2,0.5634252]
[1772736939254,0.57893234,2074.0,2073.2,0.5634252]
[1772736939658,0.57327429,2073.8,2073.2,0.5634252]
[1772736943253,0.00565805,2074.0,2073.2,0.5634252]
[1772736943460,0.57893234,2074.0,2073.2,0.5634252]
[1772736944559,0.57893234,2074.0,2073.5,0.55912473]
[1772736945953,0.81432429,2073.9,2073.5,0.55912473]
[1772736946152,0.81432429,2073.9,2073.2,0.5634252]
[1772736946153,0.57327429,2073.8,2073.2,0.5634252]
[1772736946353,0.57327429,2073.8,2073.2,0.00430047]
[1772736946763,0.57327429,2073.8,2073.2,0.5634252]
[1772736946959,0.24105,2073.9,2073.2,0.5634252]
[1772736946960,0.57327429,2073.9,2073.5,3.6272105]
[1772736947159,0.57893234,2074.0,2073.6,0.55912473]
[1772736947759,0.57893234,2074.0,2073.3,0.55912473]
[1772736948964,0.57893234,2074.0,2073.4,0.55912473]
[1772736949165,0.57893234,2074.0,2073.4,6.57702602]
[1772736949365,0.57893234,2074.0,2073.3,6.01790129]
[1772736949661,0.57893234,2074.0,2073.3,6.57702602]
[1772736950163,0.57893234,2074.0,2073.4,6.01790129]
[1772736950367,0.57327429,2073.9,2073.4,6.01790129]
[1772736950566,0.57327429,2073.9,2073.3,6.01790129]
[1772736950969,0.57327429,2073.7,2073.3,6.01790129]
[1772736951766,0.57893234,2074.0,2073.4,0.55912473]
[1772736951966,0.57893234,2074.0,2073.6,0.55912473]
[1772736952357,0.20544989,2074.0,2073.6,6.57702602]
[1772736952563,0.24101,2074.3,2073.7,0.55912473]
[1772736952564,0.57327429,2074.2,2073.7,0.55912473]
[1772736952768,0.57327429,2074.2,2073.8,0.55912473]
[1772736952969,0.81428429,2074.3,2073.8,0.55912473]
[1772736953369,0.57327429,2074.6,2074.0,0.55912473]
[1772736953566,0.57906261,2074.6,2074.0,0.55912473]
[1772736953872,0.57906261,2074.6,2074.1,0.55912473]
[1772736954067,0.57906261,2074.6,2074.2,0.55912473]
[1772736954268,0.57906261,2074.6,2074.1,6.57702602]
[1772736954470,0.57906261,2074.6,2074.1,0.55912473]
[1772736954865,0.57906261,2074.6,2074.2,0.55912473]
[1772736957971,0.57906261,2074.6,2074.1,0.55912473]
[1772736958969,0.00578832,2074.6,2074.2,0.55912473]
[1772736959571,0.57906261,2074.6,2074.2,0.55912473]
[1772736960168,0.00578832,2074.6,2074.2,0.55912473]
[1772736960369,0.55476269,2074.9,2074.5,0.59040974]
[1772736960773,0.55476269,2075.1,2074.5,0.59040974]
[1772736961170,0.55476269,2074.9,2074.2,21.29]
[1772736961474,0.79575269,2074.4,2074.2,21.29]
[1772736961671,0.79575269,2074.4,2074.0,0.59040974]
[1772736961672,0.68391034,2074.4,2074.0,0.59040974]
[1772736961870,0.55476269,2074.8,2074.0,0.59040974]
[1772736963174,0.55476269,2074.7,2074.0,0.59040974]
[1772736963474,0.55476269,2074.5,2073.9,0.59040974]
[1772736964373,0.24097,2074.6,2073.9,0.59040974]
[1772736964971,0.79573269,2074.6,2073.9,0.59040974]
[1772736966075,0.56078168,2074.9,2074.2,0.59040974]
[1772736966668,0.00601899,2074.9,2074.5,0.59040974]
[1772736966878,0.24092,2075.1,2074.5,0.59040974]
[1772736967779,0.24647832,2075.1,2074.5,0.59040974]
[1772736970181,0.55476269,2075.5,2074.8,0.59040974]
[1772736970680,0.55476269,2075.4,2074.5,6.01790129]
[1772736970883,0.55476269,2075.1,2074.5,0.59040974]
[1772736971078,0.00417049,2075.1,2074.6,0.59040974]
[1772736971277,0.00417049,2075.1,2074.9,0.59040974]
[1772736971482,0.55476269,2075.5,2074.9,0.59040974]
[1772736972280,0.55476269,2075.6,2074.9,0.59040974]
[1772736972480,0.55867921,2075.6,2074.9,0.59040974]
[1772736973281,0.55476269,2075.4,2074.9,0.59040974]
[1772736975386,0.79562269,2075.5,2074.9,0.59040974]
[1772736975881,0.55476269,2075.4,2074.7,0.59040974]
[1772736976082,0.55476269,2075.4,2074.8,0.59040974]
[1772736976588,0.55867921,2075.6,2075.0,0.59040974]
[1772736976785,0.00391652,2075.6,2075.0,0.59040974]
[1772736978789,0.00391652,2075.6,2075.3,0.59040974]
[1772736978991,0.55476269,2075.9,2075.3,0.59040974]
[1772736979586,0.79558269,2076.0,2075.3,0.59040974]
[1772736979989,0.55476269,2075.9,2075.3,0.59040974]
[1772736980688,0.55476269,2075.7,2075.1,21.93040974]
[1772736980916,0.24085,2075.6,2075.2,0.59040974]
[1772736981185,0.79949499,2076.0,2075.4,0.59040974]
[1772736981790,0.55476269,2075.9,2075.4,0.59040974]
[1772736982391,0.2447323,2076.0,2075.4,0.59040974]
[1772736982689,0.55476269,2075.9,2075.4,0.59040974]
[1772736983990,0.55476269,2075.7,2075.3,21.344]
[1772736984694,0.55476269,2075.7,2075.3,21.93440974]
[1772736984891,0.55476269,2075.7,2075.4,0.59040974]
[1772736985092,0.55476269,2075.7,2075.3,21.93440974]
[1772736986089,0.55476269,2075.5,2075.1,0.59040974]
[1772736986290,0.55476269,2075.5,2075.1,21.94740974]
[1772736986490,0.55476269,2075.5,2075.1,21.357]
[1772736988095,0.55476269,2075.5,2075.1,21.93766785]
[1772736988290,0.56706104,2075.3,2074.9,0.58066785]
[1772736988695,5.92456,2075.8,2074.8,0.58066785]
[1772736988696,0.56706104,2075.1,2074.8,0.58066785]
[1772736988994,0.1108247,2075.2,2074.8,0.58066785]
[1772736989295,5.92456,2075.8,2074.8,0.58066785]
[1772736989692,0.24089,2075.4,2074.8,0.58066785]
[1772736993401,0.22962596,2075.8,2075.1,0.57339877]
[1772736993603,0.24084,2075.7,2075.1,0.57339877]
[1772736993800,0.24084,2075.7,2075.3,0.57339877]
[1772736994598,0.24089,2075.4,2075.1,0.57339877]
[1772736998806,0.79755665,2075.4,2075.1,0.57339877]
[1772736999003,0.24089,2075.4,2075.1,0.57339877]
[1772736999306,0.56058895,2076.0,2075.2,0.57339877]
[1772737000007,0.80139895,2076.0,2075.4,0.57339877]
[1772737000308,0.2447323,2076.0,2075.4,0.57339877]
[1772737000699,0.2447323,2076.0,2075.5,0.57339877]
[1772737000900,0.55666665,2075.9,2075.5,0.57339877]
[1772737001403,0.2447323,2076.0,2075.4,6.59130006]
[1772737001404,0.79749665,2075.8,2075.4,6.59130006]
[1772737001603,0.24083,2075.8,2075.5,0.57339877]
[1772737001906,0.55666665,2075.9,2075.5,0.57339877]
[1772737002302,0.24083,2075.8,2075.5,0.57339877]
[1772737002508,0.56058895,2076.0,2075.5,0.57339877]
[1772737003603,0.55666665,2075.9,2075.5,0.57339877]
[1772737006005,0.55666665,2075.7,2075.3,6.59130006]
[1772737006201,0.55666665,2075.7,2075.2,6.59130006]
[1772737006405,0.55666665,2075.7,2075.2,0.57339877]
[1772737008310,0.24083,2075.8,2075.2,0.57339877]
[1772737008614,0.24083,2075.8,2075.3,0.57339877]
[1772737008911,0.55666665,2075.7,2075.3,0.57339877]
[1772737009210,0.24088,2075.4,2075.3,21.521]
[1772737009712,0.24088,2075.4,2075.2,0.57339877]
[1772737011807,0.55666665,2075.7,2075.2,0.57339877]
[1772737012010,0.24082,2075.9,2075.3,0.57339877]
[1772737013014,0.24082,2075.9,2075.4,0.57339877]
[1772737013215,0.55666665,2076.6,2075.6,0.57339877]
[1772737013412,0.79744665,2076.3,2075.7,0.57339877]
[1772737013611,0.55666665,2076.2,2075.7,0.57339877]
[1772737014418,0.2408,2076.1,2075.7,0.57339877]
[1772737014615,0.79746665,2076.1,2075.7,0.57339877]
[1772737015317,0.55666665,2076.0,2075.7,0.57339877]
[1772737015716,0.79748665,2075.9,2075.6,6.59130006]
[1772737016010,0.79750665,2075.7,2075.4,0.57339877]
[1772737016214,0.79750665,2075.7,2075.4,21.575]
[1772737016410,0.24086,2075.5,2075.3,0.57339877]
[1772737016605,0.55666665,2075.2,2074.9,6.01790129]
[1772737016806,0.24089,2075.3,2074.9,0.57339877]
[1772737017011,0.55666665,2075.2,2074.8,0.57339877]
[1772737017620,0.55666665,2075.2,2074.6,22.15339877]
[1772737018517,0.55666665,2075.2,2074.6,22.16739877]
[1772737020519,0.24089,2075.3,2074.7,0.58756322]
[1772737020720,0.24089,2075.3,2074.8,0.58756322]
[1772737022213,6.313,2076.0,2074.8,0.58756322]
[1772737022214,0.58978581,2075.6,2074.8,0.58756322]
[1772737022413,0.58978581,2075.8,2074.9,0.58756322]
[1772737022614,0.58978581,2075.8,2075.1,0.58756322]
[1772737023217,0.83062581,2075.8,2075.1,0.58756322]
[1772737023515,0.24084,2075.8,2075.2,0.58756322]
[1772737023922,0.24084,2075.8,2075.3,0.58756322]
[1772737024220,0.24084,2075.8,2075.5,0.58756322]
[1772737024422,0.59521082,2076.2,2075.5,0.58756322]
[1772737024614,0.83058581,2076.1,2075.5,0.58756322]
[1772737025127,0.2408,2076.1,2075.5,0.58756322]
[1772737025324,0.83058581,2076.1,2075.5,0.58756322]
[1772737025525,0.58978581,2076.0,2075.5,0.58756322]
[1772737026119,0.58978581,2076.0,2075.4,27.66590129]
[1772737026120,0.58978581,2075.8,2075.4,0.58756322]
[1772737026316,0.58978581,2075.8,2075.4,22.25156322]
[1772737027825,0.58978581,2075.8,2075.4,21.664]
[1772737028618,0.58978581,2075.8,2075.4,22.25156322]
[1772737029022,0.83060581,2075.9,2075.5,0.58756322]
[1772737029222,0.58978581,2075.8,2075.5,0.58756322]
[1772737029425,0.58978581,2075.8,2075.4,22.25156322]
[1772737029928,0.83060581,2075.9,2075.5,0.58756322]
[1772737031421,0.58978581,2075.8,2075.5,0.58756322]
[1772737031626,0.83060581,2075.9,2075.5,0.58756322]
[1772737032024,0.58978581,2076.1,2075.5,0.58756322]
[1772737033025,0.58978581,2075.9,2075.4,27.68190129]
[1772737033229,0.58978581,2075.9,2075.5,0.58756322]
[1772737033825,0.24081,2076.0,2075.5,0.58756322]
[1772737034025,0.83059581,2076.0,2075.5,0.58756322]
[1772737034934,0.58978581,2075.5,2075.1,26.8366145]
[1772737035131,0.58978581,2075.5,2075.1,21.83183893]
[1772737035535,0.83063581,2075.6,2075.2,0.11283893]
[1772737038732,0.58978581,2075.5,2075.2,0.11283893]
[1772737039731,0.58978581,2075.5,2075.1,21.82909622]
[1772737040334,0.58978581,2075.3,2074.8,7.40972966]
[1772737040539,0.58978581,2075.3,2074.9,21.85909622]
[1772737042529,0.24088,2075.4,2075.0,0.11193649]
[1772737043733,0.24083,2075.8,2075.0,0.11193649]
[1772737043936,0.58978581,2075.7,2075.0,0.11193649]
[1772737045836,0.24083,2075.8,2075.1,0.11260869]
[1772737046040,0.58978581,2075.9,2075.2,0.11260869]
[1772737046238,0.58978581,2075.9,2075.4,0.11260869]
[1772737051242,0.56083793,2076.2,2075.5,0.11896967]
[1772737052336,0.24078,2076.3,2075.3,21.785]
[1772737052337,0.55541292,2076.4,2075.7,0.11896967]
[1772737052635,0.55541292,2076.4,2075.9,0.11811559]
[1772737053436,0.55541292,2076.4,2075.8,21.93411559]
[1772737053641,0.55959304,2076.4,2075.8,21.93411559]
[1772737053841,0.55959304,2076.4,2075.8,21.816]
[1772737054539,0.55959304,2076.4,2075.8,21.93411559]
[1772737056035,0.55959304,2076.4,2075.9,0.11677682]
[1772737057441,0.55959304,2076.4,2075.8,21.93350346]
[1772737057638,0.55959304,2076.4,2075.9,0.11750346]
[1772737059238,0.55959304,2076.4,2075.7,0.13176565]
[1772737059446,0.55541292,2076.2,2075.8,21.865]
[1772737059841,0.55541292,2076.2,2075.8,21.99676565]
[1772737060243,0.55541292,2076.2,2075.9,0.13176565]
[1772737060438,0.79618292,2076.3,2075.9,0.13176565]
[1772737061246,0.55541292,2076.3,2075.9,0.13176565]
[1772737061449,0.55541292,2076.3,2075.8,21.99237649]
[1772737062245,0.00418012,2076.4,2075.9,0.12737649]
[1772737062547,0.55541292,2077.0,2076.1,0.12737649]
[1772737062847,0.55541292,2077.0,2076.3,0.5426952]
[1772737063347,0.55541292,2077.4,2076.6,0.5426952]
[1772737063549,0.55541292,2077.4,2076.5,3.06358401]
[1772737063550,0.55541292,2077.4,2076.8,0.5426952]
[1772737063754,0.55541292,2077.6,2076.8,0.5426952]
[1772737064052,0.55541292,2077.9,2077.0,0.5426952]
[1772737064242,0.55541292,2077.9,2077.2,0.5426952]
[1772737064446,0.56084435,2077.9,2077.2,0.5426952]
[1772737065353,0.56084435,2077.9,2077.1,21.908]
[1772737065552,0.56084435,2077.9,2077.1,22.4506952]
[1772737066147,0.56084435,2077.9,2077.2,0.5426952]
[1772737068442,0.56084435,2077.9,2077.3,0.5426952]
[1772737069847,0.55541292,2077.5,2077.1,21.908]
[1772737070051,0.55541292,2077.5,2076.8,22.4906952]
[1772737070448,0.55541292,2077.3,2076.8,22.4906952]
[1772737071244,0.55541292,2077.3,2076.8,21.948]
[1772737071444,5.91888,2077.8,2076.6,0.5426952]
[1772737071445,0.55541292,2077.1,2076.6,0.5426952]
[1772737071853,0.55541292,2077.1,2076.7,0.5426952]
[1772737072750,0.24067,2077.2,2076.9,0.5426952]
[1772737073455,0.79608292,2077.2,2076.9,0.5426952]
[1772737074153,0.79608292,2077.2,2076.8,21.972]
[1772737074354,0.55541292,2077.2,2076.9,0.5426952]
[1772737075948,0.55541292,2077.6,2076.9,0.5426952]
[1772737076455,0.55541292,2077.6,2077.0,0.5426952]
[1772737078156,0.55541292,2077.6,2077.3,0.5426952]
[1772737078358,0.79603292,2077.7,2077.3,0.5426952]
[1772737078562,0.24062,2077.7,2077.4,0.5426952]
[1772737078763,0.55541292,2077.6,2077.3,22.5666952]
[1772737078963,0.55541292,2077.6,2077.3,22.024]
[1772737079364,0.55541292,2077.6,2077.3,22.5666952]
[1772737080463,0.81924608,2077.7,2077.3,22.5666952]
[1772737080670,0.81924608,2077.7,2077.4,0.57102311]
[1772737080865,0.57862608,2077.8,2077.4,0.57102311]
[1772737081167,0.24062,2077.7,2077.4,0.57102311]
[1772737081368,0.57862608,2077.8,2077.4,0.57102311]
[1772737081566,0.24062,2077.7,2077.4,0.57102311]
[1772737081767,0.57862608,2077.6,2077.3,22.024]
[1772737082766,0.57862608,2077.6,2077.3,22.59502311]
[1772737083169,0.58405751,2077.9,2077.4,0.57102311]
[1772737084067,0.57862608,2077.7,2077.3,22.024]
[1772737084371,0.24064,2077.4,2077.0,22.059]
[1772737084671,0.57862608,2077.1,2076.7,0.57102311]
[1772737084871,0.57862608,2077.1,2076.7,22.63202311]
[1772737085072,0.24067,2077.2,2076.8,0.57102311]
[1772737085572,0.81929608,2077.2,2076.8,0.57102311]
[1772737087474,0.57862608,2077.1,2076.8,0.57102311]
[1772737087670,0.81929608,2077.2,2076.8,0.57102311]
[1772737088479,0.57862608,2077.1,2076.8,0.57102311]